bitfinex-derivatives/quotes_BTCF0:USTF0_20240905
["timestamp","ask_amount","ask_price","bid_price","bid_amount"]
[1725566093903,0.089262,56024.0,56023.0,0.3608]
[1725566094415,0.089268,56019.0,56018.0,0.36106782]
[1725566094802,0.091268,56019.0,56018.0,0.36106782]
[1725566096297,0.104268,56019.0,56018.0,0.36206782]
[1725566096707,1.329056,56019.0,56018.0,0.36206782]
[1725566097111,1.333056,56019.0,56018.0,0.36206782]
[1725566097300,1.338056,56019.0,56018.0,0.36206782]
[1725566097702,1.338056,56019.0,56018.0,0.00126782]
[1725566097903,1.338056,56019.0,56018.0,8.2e-07]
[1725566097904,1.538924,56019.0,56018.0,8.2e-07]
[1725566098103,1.762324,56019.0,56018.0,8.2e-07]
[1725566098403,2.212392,56019.0,56018.0,8.2e-07]
[1725566098809,2.212392,56019.0,55998.0,0.3608]
[1725566098810,0.0893,55999.0,55998.0,0.3608]
[1725566099108,0.0913,55999.0,55998.0,0.3608]
[1725566100108,0.0913,55999.0,55996.0,0.089305]
[1725566100109,0.089303,55998.0,55996.0,0.089305]
[1725566100316,0.089303,55998.0,55993.0,0.00026782]
[1725566100317,0.089308,55994.0,55993.0,0.00026782]
[1725566100502,0.180616,55994.0,55993.0,0.00026782]
[1725566100704,0.089308,55994.0,55993.0,0.00026782]
[1725566101316,0.002,55997.0,55996.0,0.089305]
[1725566101520,0.002,55997.0,55993.0,0.00026782]
[1725566101521,0.089308,55994.0,55993.0,0.00026782]
[1725566101813,0.091308,55994.0,55993.0,0.00026782]
[1725566102410,0.002,55994.0,55993.0,0.45037782]
[1725566102602,0.002,55994.0,55993.0,0.08957782]
[1725566102807,0.009,55994.0,55993.0,0.09057782]
[1725566103003,0.098308,55994.0,55993.0,0.00126782]
[1725566103412,1.323376,55994.0,55993.0,0.00126782]
[1725566103612,0.096308,55994.0,55993.0,0.00026782]
[1725566103806,0.002,55997.0,55996.0,0.17861]
[1725566104011,0.002,55997.0,55996.0,0.52102636]
[1725566104213,0.002,55997.0,55996.0,0.3608]
[1725566104420,0.180606,55997.0,55996.0,0.3608]
[1725566104615,0.091303,55997.0,55996.0,0.3608]
[1725566105013,0.089303,55997.0,55996.0,0.3608]
[1725566105622,0.089295,56003.0,55998.0,0.089302]
[1725566105919,0.00026782,56004.0,55996.0,0.7216]
[1725566105920,0.00026782,56004.0,56002.0,0.3608]
[1725566106118,0.00026782,56004.0,56003.0,0.089294]
[1725566106324,0.00026782,56004.0,56003.0,1.336474]
[1725566107222,0.00626782,56004.0,56003.0,1.336474]
[1725566107416,0.00626782,56004.0,56003.0,0.736474]
[1725566107618,0.00626782,56004.0,56003.0,0.27178673]
[1725566107817,0.00626782,56004.0,56003.0,0.200794]
[1725566108214,0.00626782,56004.0,56002.0,0.3608]
[1725566108417,0.00626782,56004.0,56003.0,0.006]
[1725566108622,0.00626782,56004.0,56003.0,0.70196673]
[1725566108925,0.00026782,56004.0,56003.0,1.230974]
[1725566109113,0.00126782,56004.0,56003.0,0.089294]
[1725566109426,0.00126782,56004.0,56003.0,0.003]
[1725566109621,0.08955982,56004.0,56003.0,0.003]
[1725566110414,0.52885182,56004.0,56003.0,0.003]
[1725566110615,1.75382382,56004.0,56003.0,0.003]
[1725566110816,1.75882382,56004.0,56003.0,0.003]
[1725566111027,0.17859,56002.0,56001.0,0.3608]
[1725566111333,0.091295,56002.0,56001.0,0.3608]
[1725566111517,0.18059,56002.0,56001.0,0.3608]
[1725566111717,0.089308,55995.0,55990.0,0.71176]
[1725566112022,0.089308,55995.0,55994.0,0.3608]
[1725566112828,0.089302,55998.0,55994.0,0.7108]
[1725566113019,0.089303,55998.0,55994.0,0.7108]
[1725566113326,0.003,55995.0,55994.0,0.7108]
[1725566113527,0.003,55995.0,55994.0,1.0716]
[1725566113717,0.01,56002.0,55994.0,2.20736]
[1725566113928,0.01,56002.0,56001.0,0.889394]
[1725566114119,0.0042,56021.0,56001.0,0.8187]
[1725566114327,0.089252,56029.0,56021.0,0.089265]
[1725566114625,0.08924,56037.0,56030.0,0.08925]
[1725566114825,0.089232,56042.0,56036.0,0.3608]
[1725566115021,0.089232,56042.0,56041.0,0.3608]
[1725566115222,0.0042,56047.0,56041.0,0.3608]
[1725566115223,0.00446782,56047.0,56041.0,0.3608]
[1725566115426,0.00026782,56047.0,56046.0,0.7108]
[1725566116025,0.00026782,56047.0,56046.0,0.7608]
[1725566116223,0.00026782,56047.0,56046.0,0.3608]
[1725566116627,0.01326782,56047.0,56046.0,0.3608]
[1725566117626,0.01326782,56047.0,56046.0,1.89708]
[1725566118231,0.01326782,56047.0,56046.0,0.3618]
[1725566119035,0.01326782,56047.0,56046.0,0.89708]
[1725566119231,0.01326782,56047.0,56046.0,1.49708]
[1725566119425,0.01326782,56047.0,56046.0,0.3618]
[1725566120434,0.01326782,56047.0,56046.0,1.586305]
[1725566120632,0.01326782,56047.0,56046.0,1.986305]
[1725566120838,0.01326782,56047.0,56046.0,1.89708]
[1725566121132,0.01326782,56047.0,56046.0,0.3618]
[1725566121531,0.01326782,56047.0,56046.0,1.386305]
[1725566121738,0.01326782,56047.0,56046.0,0.851025]
[1725566122731,0.01326782,56047.0,56046.0,1.986305]
[1725566123325,0.01326782,56047.0,56046.0,1.386305]
[1725566123627,0.01326782,56047.0,56046.0,1.986305]
[1725566124023,0.01326782,56047.0,56046.0,1.386305]
[1725566124228,0.01505782,56047.0,56046.0,0.851025]
[1725566124440,0.01505782,56047.0,56046.0,0.7618]
[1725566124621,0.01505782,56047.0,56046.0,1.386305]
[1725566124824,0.0042,56063.0,56062.0,0.0892]
[1725566125028,0.089175,56078.0,56062.0,2.25672]
[1725566125327,0.089175,56078.0,56077.0,0.7216]
[1725566126123,0.089175,56078.0,56077.0,0.3608]
[1725566126124,0.713311,56078.0,56077.0,0.3608]
[1725566126326,0.089182,56073.0,56072.0,0.00026756]
[1725566126523,0.091182,56073.0,56072.0,0.00026756]
[1725566126827,0.091182,56073.0,56072.0,0.36106756]
[1725566128225,0.091182,56073.0,56072.0,0.00126756]
[1725566128430,0.638222,56073.0,56072.0,0.36306756]
[1725566128634,0.103182,56073.0,56072.0,0.36306756]
[1725566128936,0.014,56073.0,56072.0,0.36306756]
[1725566129434,0.014,56073.0,56072.0,0.45225156]
[1725566130028,0.014,56073.0,56072.0,1.58729156]
[1725566130530,0.014,56073.0,56072.0,1.67647556]
[1725566131031,0.014,56073.0,56072.0,3.17647556]
[1725566131227,0.014,56073.0,56072.0,3.08729156]
[1725566131528,0.003,56073.0,56072.0,3.08729156]
[1725566132334,0.003,56073.0,56072.0,1.95225156]
[1725566132531,0.003,56073.0,56072.0,0.36306756]
[1725566132737,1.316404,56073.0,56072.0,0.00226756]
[1725566133033,1.405586,56073.0,56072.0,0.00226756]
[1725566133234,0.089203,56060.0,56059.0,0.3608]
[1725566133430,0.180406,56060.0,56059.0,0.3608]
[1725566133827,0.091203,56060.0,56059.0,0.3608]
[1725566134527,0.180406,56060.0,56059.0,0.3608]
[1725566134839,0.089211,56055.0,56054.0,0.36106756]
[1725566135036,0.091211,56055.0,56054.0,0.36106756]
[1725566135536,0.002,56055.0,56054.0,0.36106756]
[1725566135842,0.002,56055.0,56054.0,1.49626756]
[1725566136134,0.002,56055.0,56054.0,1.58548056]
[1725566137233,0.002,56055.0,56054.0,3.08548056]
[1725566137437,0.013,56055.0,56054.0,3.08648056]
[1725566138134,0.002,56055.0,56054.0,3.09048056]
[1725566138529,0.002,56055.0,56054.0,1.59048056]
[1725566138728,0.002,56055.0,56054.0,0.36606756]
[1725566139134,0.002,56055.0,56054.0,0.36306756]
[1725566139338,0.002,56055.0,56054.0,0.36606756]
[1725566139729,0.04456477,56061.0,56054.0,0.36606756]
[1725566139935,0.089211,56055.0,56054.0,0.36606756]
[1725566140238,0.089211,56055.0,56054.0,0.36406756]
[1725566140239,0.178422,56055.0,56054.0,0.36406756]
[1725566140540,0.713622,56055.0,56054.0,0.00526756]
[1725566140839,1.402833,56055.0,56054.0,0.00526756]
[1725566141140,1.402833,56055.0,56054.0,0.00326756]
[1725566141141,0.713622,56055.0,56054.0,0.00326756]
[1725566141338,0.713622,56055.0,56054.0,0.00426756]
[1725566141638,0.720622,56055.0,56054.0,0.00226756]
[1725566142038,0.096211,56055.0,56054.0,0.00226756]
[1725566142546,0.096211,56055.0,56054.0,0.36306756]
[1725566143040,0.096211,56055.0,56054.0,0.09148056]
[1725566143041,0.007,56055.0,56054.0,0.09148056]
[1725566143938,0.185422,56055.0,56054.0,0.00226756]
[1725566144144,1.320622,56055.0,56054.0,0.00226756]
[1725566144437,1.231411,56055.0,56054.0,0.00226756]
[1725566144644,0.631411,56055.0,56054.0,0.00226756]
[1725566144837,1.320622,56055.0,56054.0,0.00226756]
[1725566145038,1.231411,56055.0,56054.0,0.00226756]
[1725566145437,1.320622,56055.0,56054.0,0.00226756]
[1725566145627,1.231411,56055.0,56054.0,0.00226756]
[1725566145828,1.320622,56055.0,56054.0,0.00226756]
[1725566147451,0.089241,56036.0,56031.0,0.0622308]
[1725566147740,0.089243,56035.0,56027.0,0.41092]
[1725566147932,0.002,56028.0,56024.0,0.3608]
[1725566148238,0.002,56028.0,56027.0,0.089255]
[1725566148641,0.089259,56025.0,56024.0,0.3608]
[1725566148946,0.089259,56025.0,56022.0,0.41026756]
[1725566148947,0.089262,56023.0,56022.0,0.00026756]
[1725566149247,0.091262,56023.0,56022.0,0.00026756]
[1725566149448,0.452062,56023.0,56022.0,0.00026756]
[1725566149644,0.091262,56023.0,56022.0,0.00026756]
[1725566150039,0.714004,56023.0,56022.0,0.00026756]
[1725566150236,0.624742,56023.0,56022.0,0.00026756]
[1725566150443,0.089262,56023.0,56022.0,0.00026756]
[1725566150747,0.089262,56023.0,56022.0,0.36106756]
[1725566151347,0.003,56028.0,56025.0,0.089259]
[1725566151546,0.011,56023.0,56022.0,0.77306756]
[1725566151746,0.011,56023.0,56022.0,0.45233156]
[1725566151938,0.013,56023.0,56022.0,0.45233156]
[1725566152140,0.191524,56023.0,56022.0,0.36306756]
[1725566152439,1.327004,56023.0,56022.0,0.00226756]
[1725566152845,0.089276,56014.0,56013.0,0.00826882]
[1725566153150,0.091276,56014.0,56013.0,0.00826882]
[1725566153851,0.180552,56014.0,56013.0,0.00826882]
[1725566155150,0.180552,56014.0,56013.0,0.09754682]
[1725566155151,0.002,56014.0,56013.0,0.09754682]
[1725566156743,0.091276,56014.0,56013.0,0.00826882]
[1725566157548,0.002,56014.0,56013.0,0.00826882]
[1725566157754,0.002,56014.0,56013.0,1.59394682]
[1725566157950,0.002,56014.0,56013.0,0.45834682]
[1725566158142,0.00026756,56019.0,56018.0,0.08927]
[1725566158344,0.451129,56031.0,56018.0,0.08927]
[1725566158345,0.089251,56030.0,56018.0,2.2708]
[1725566158655,0.1189,56036.0,56027.0,0.3608]
[1725566158849,0.089254,56029.0,56027.0,0.3608]
[1725566159349,0.089247,56033.0,56027.0,0.3608]
[1725566159552,0.00026756,56034.0,56027.0,0.3608]
[1725566159946,0.089254,56028.0,56027.0,0.3608]
[1725566160147,0.089252,56030.0,56022.0,0.00026756]
[1725566160148,0.089261,56024.0,56022.0,0.00026756]
[1725566160446,0.089258,56026.0,56023.0,0.3608]
[1725566160957,0.00026756,56034.0,56024.0,0.08926]
[1725566160958,0.089252,56030.0,56024.0,0.08926]
[1725566161144,0.089255,56028.0,56024.0,0.08926]
[1725566161453,0.089255,56028.0,56023.0,0.3608]
[1725566161454,0.089252,56030.0,56023.0,0.7216]
[1725566161651,0.089252,56030.0,56023.0,0.3608]
[1725566161652,0.003,56024.0,56023.0,0.3608]
[1725566161853,0.09226,56024.0,56023.0,0.3608]
[1725566162554,0.18152,56024.0,56023.0,0.3608]
[1725566162851,0.089262,56023.0,56022.0,0.00026756]
[1725566163048,0.091262,56023.0,56022.0,0.00026756]
[1725566164854,0.188524,56023.0,56022.0,0.00126756]
[1725566165052,0.199524,56023.0,56022.0,0.00126756]
[1725566165271,1.335004,56023.0,56022.0,5.6e-07]
[1725566165564,1.424266,56023.0,56022.0,5.6e-07]
[1725566166250,0.178552,56014.0,56013.0,0.01026882]
[1725566166452,0.180552,56014.0,56013.0,0.01026882]
[1725566166657,1.316152,56014.0,56013.0,0.01026882]
[1725566166855,1.226876,56014.0,56013.0,0.01026882]
[1725566167056,1.316152,56014.0,56013.0,0.01026882]
[1725566167463,1.317152,56014.0,56013.0,0.01026882]
[1725566168361,1.905704,56014.0,56013.0,8.2e-07]
[1725566168562,0.089303,55997.0,55996.0,0.450105]
[1725566168754,1.637876,56014.0,56000.0,0.089299]
[1725566168755,0.089299,56001.0,56000.0,0.089299]
[1725566168954,0.089299,56001.0,55996.0,0.3608]
[1725566168955,0.08929,56006.0,55996.0,0.3608]
[1725566169150,0.004,55997.0,55996.0,0.450104]
[1725566169965,0.011,55997.0,55996.0,0.451104]
[1725566170260,0.018,55997.0,55996.0,0.451104]
[1725566170462,0.0002678,56002.0,55996.0,0.451104]
[1725566170463,0.0002678,56002.0,56001.0,0.089297]
[1725566170658,0.0002678,56002.0,56001.0,0.450097]
[1725566171162,0.0002678,56002.0,56001.0,0.52100153]
[1725566171363,0.0002678,56002.0,56001.0,0.569697]
[1725566172166,0.0002678,56002.0,56001.0,0.679497]
[1725566173253,0.0122678,56002.0,56001.0,0.680497]
[1725566173960,0.775,56020.0,56001.0,2.38982408]
[1725566173961,0.365,56020.0,56001.0,2.38982408]
[1725566174164,0.19821184,56033.0,56001.0,2.38982408]
[1725566174165,0.0042,56028.0,56019.0,0.7108]
[1725566174359,0.7108,56036.0,56020.0,0.05323414]
[1725566174360,0.089262,56024.0,56020.0,0.05323414]
[1725566174551,0.089258,56026.0,56020.0,0.089266]
[1725566174862,0.35,56032.0,56021.0,0.43177886]
[1725566175055,0.089242,56036.0,56021.0,0.43177886]
[1725566175056,0.089257,56026.0,56022.0,0.07097886]
[1725566175255,0.0002678,56028.0,56022.0,0.16024286]
[1725566175454,0.0002678,56028.0,56022.0,0.089264]
[1725566175855,0.0002678,56028.0,56022.0,1.67783104]
[1725566176057,0.0002678,56028.0,56022.0,2.08783104]
[1725566176252,0.00152162,56023.0,56022.0,2.13530034]
[1725566176466,0.00152162,56023.0,56022.0,3.36004434]
[1725566176661,0.0002678,56028.0,56022.0,3.43734143]
[1725566176864,0.0002678,56028.0,56027.0,0.860056]
[1725566177059,0.0002678,56028.0,56027.0,1.10272174]
[1725566177255,0.0002678,56028.0,56027.0,0.99609234]
[1725566177662,0.0002678,56028.0,56027.0,2.13150373]
[1725566177859,0.0002678,56028.0,56027.0,0.99606373]
[1725566178059,0.0002678,56028.0,56027.0,2.49606373]
[1725566178261,0.0022678,56028.0,56027.0,2.49606373]
[1725566178867,0.0042,56043.0,56042.0,0.089232]
[1725566179076,0.08921,56056.0,56046.0,0.089225]
[1725566179262,0.089203,56060.0,56050.0,0.05329776]
[1725566179459,0.7708,56061.0,56047.0,0.05329776]
[1725566179768,0.0002678,56060.0,56048.0,0.3610678]
[1725566180162,0.089206,56058.0,56048.0,0.3610678]
[1725566180564,0.0002678,56060.0,56048.0,0.3610678]
[1725566180760,0.089213,56054.0,56053.0,0.3608]
[1725566181062,0.089213,56054.0,56048.0,0.3610678]
[1725566181063,0.089221,56049.0,56048.0,0.0002678]
[1725566181265,0.091221,56049.0,56048.0,0.0002678]
[1725566182370,0.094221,56049.0,56048.0,0.0002678]
[1725566182568,1.318682,56049.0,56048.0,0.0002678]
[1725566182772,1.318682,56049.0,56039.0,0.3608]
[1725566182773,0.089235,56040.0,56039.0,0.3608]
[1725566182970,0.091235,56040.0,56039.0,0.3608]
[1725566184265,0.091235,56040.0,56034.0,0.0002678]
[1725566184266,0.002,56040.0,56034.0,0.0002678]
[1725566184571,0.091243,56035.0,56034.0,0.0002678]
[1725566184771,0.180486,56035.0,56034.0,0.0002678]
[1725566184971,0.72515007,56035.0,56034.0,0.0002678]
[1725566185173,0.88218104,56035.0,56034.0,0.0002678]
[1725566185362,0.34678104,56035.0,56034.0,0.0002678]
[1725566185567,0.13495724,56035.0,56034.0,0.0002678]
[1725566185767,0.20374875,56035.0,56034.0,0.0002678]
[1725566186474,0.20974875,56035.0,56034.0,0.0012678]
[1725566186869,0.36677972,56035.0,56034.0,0.0012678]
[1725566187179,0.36677838,56035.0,56034.0,0.0012678]
[1725566187770,0.20974741,56035.0,56034.0,0.0012678]
[1725566188068,0.26843512,56035.0,56034.0,0.0012678]
[1725566188268,0.45618253,56035.0,56034.0,0.0012678]
[1725566188468,0.73114741,56035.0,56034.0,0.0012678]
[1725566188679,1.43239041,56035.0,56034.0,0.0012678]
[1725566188976,1.43239041,56035.0,56019.0,0.089267]
[1725566188977,0.089266,56021.0,56019.0,0.089267]
[1725566189166,0.089266,56021.0,56007.0,0.611887]
[1725566189167,0.089261,56024.0,56020.0,0.7216]
[1725566189475,0.04371866,56023.0,56020.0,0.7216]
[1725566189669,0.089261,56024.0,56020.0,0.7216]
[1725566189869,0.089265,56022.0,56020.0,0.7216]
[1725566190167,0.13298242,56021.0,56020.0,0.7216]
[1725566191681,0.13998242,56021.0,56020.0,0.7226]
[1725566191881,0.13998546,56021.0,56020.0,0.7226]
[1725566192080,0.105265,56021.0,56020.0,0.7226]
[1725566192468,0.016,56021.0,56020.0,0.7226]
[1725566192673,0.016,56021.0,56020.0,0.811867]
[1725566193584,0.007,56021.0,56020.0,0.811867]
[1725566193789,0.007,56021.0,56020.0,0.813867]
[1725566193790,0.008,56021.0,56020.0,0.813867]
[1725566194283,0.001,56021.0,56020.0,0.819867]
[1725566194473,0.006,56021.0,56020.0,0.819867]
[1725566194883,0.005,56021.0,56020.0,0.810867]
[1725566195082,0.08926,56024.0,56021.0,0.089265]
[1725566195475,0.0002678,56028.0,56027.0,0.089256]
[1725566195686,0.0002678,56028.0,56027.0,0.539312]
[1725566195979,0.0002678,56028.0,56027.0,2.039312]
[1725566196179,0.0002678,56028.0,56027.0,1.950056]
[1725566196781,0.0002678,56028.0,56027.0,1.8608]
[1725566196985,0.0002678,56028.0,56027.0,0.3608]
[1725566197373,0.1807758,56028.0,56027.0,0.3608]
[1725566197986,0.089265,56021.0,56020.0,0.3608]
[1725566198189,0.091265,56021.0,56020.0,0.3608]
[1725566200279,0.100265,56021.0,56020.0,0.3608]
[1725566200880,0.106265,56021.0,56020.0,0.3618]
[1725566201292,0.101265,56021.0,56020.0,0.3618]
[1725566203090,0.106265,56021.0,56020.0,0.3618]
[1725566204685,0.284795,56021.0,56020.0,0.001]
[1725566204893,1.420315,56021.0,56020.0,0.001]
[1725566205193,1.420315,56021.0,56016.0,0.0002678]
[1725566205194,0.267816,56017.0,56016.0,0.0002678]
[1725566205394,1.155376,56017.0,56016.0,0.0002678]
[1725566205694,1.755376,56017.0,56016.0,0.0002678]
[1725566206799,1.759376,56017.0,56016.0,0.0002678]
[1725566207599,1.763376,56017.0,56016.0,0.0002678]
[1725566207795,1.163376,56017.0,56016.0,0.0002678]
[1725566208106,1.763376,56017.0,56016.0,0.0002678]
[1725566208898,0.178574,56007.0,56006.0,0.3608]
[1725566209220,0.180574,56007.0,56006.0,0.3608]
[1725566210420,0.182574,56007.0,56006.0,0.3708]
[1725566210714,0.004,56007.0,56006.0,0.460089]
[1725566210910,0.004,56007.0,56006.0,0.810089]
[1725566211615,0.004,56007.0,56006.0,2.310089]
[1725566213208,0.0024636,56007.0,56006.0,3.58837243]
[1725566213411,0.0024636,56007.0,56006.0,3.58838255]
[1725566213716,0.0024636,56007.0,56006.0,3.535018]
[1725566213910,0.0024636,56007.0,56006.0,3.58838188]
[1725566214316,0.002,56007.0,56006.0,3.58838188]
[1725566214510,0.002,56007.0,56006.0,2.98838188]
[1725566214712,0.002,56007.0,56006.0,3.58838188]
[1725566215022,0.0002678,56012.0,56011.0,0.089281]
[1725566215318,0.0002678,56012.0,56011.0,0.80919251]
[1725566215508,0.0002678,56012.0,56011.0,1.94479251]
[1725566216119,0.0002678,56012.0,56011.0,0.7108]
[1725566216321,0.0002678,56012.0,56011.0,0.3608]
[1725566216322,0.1788258,56012.0,56011.0,0.3608]
[1725566216723,0.0895468,56012.0,56011.0,0.3608]
[1725566216924,0.0895468,56012.0,56011.0,0.3618]
[1725566217122,0.1788258,56012.0,56011.0,0.003]
[1725566217424,0.1788258,56012.0,56001.0,0.36098162]
[1725566217425,0.17859,56002.0,56001.0,0.36098162]
[1725566217723,0.18059,56002.0,56001.0,0.36098162]
[1725566217927,0.091295,56002.0,56001.0,0.36098162]
[1725566219119,0.18059,56002.0,56001.0,0.36098162]
[1725566219419,0.18059,56002.0,56001.0,0.00018162]
[1725566219630,0.18159,56002.0,56001.0,0.00318162]
[1725566220412,0.18259,56002.0,56001.0,0.01518162]
[1725566221421,0.004,56002.0,56001.0,0.46527862]
[1725566221624,0.093295,56002.0,56001.0,0.37598162]
[1725566223023,0.18259,56002.0,56001.0,0.01518162]
[1725566223423,0.271885,56002.0,56001.0,0.01518162]
[1725566223627,0.2679,55999.0,55998.0,0.0055364]
[1725566223812,0.6199,55999.0,55998.0,0.0055364]
[1725566224013,1.75562,55999.0,55998.0,0.0055364]
[1725566224217,0.6199,55999.0,55998.0,0.0055364]
[1725566225025,0.0923,55999.0,55998.0,0.1088384]
[1725566225218,0.003,55999.0,55998.0,0.1088384]
[1725566225917,0.004,55999.0,55998.0,0.1088384]
[1725566226117,0.004,55999.0,55998.0,0.0195364]
[1725566226317,0.0933,55999.0,55998.0,0.0195364]
[1725566227024,0.0933,55999.0,55998.0,0.1088384]
[1725566227025,0.004,55999.0,55998.0,0.1088384]
[1725566227413,0.004,55999.0,55998.0,0.0195364]
[1725566227818,0.0933,55999.0,55998.0,0.0195364]
[1725566229039,0.004,55999.0,55998.0,0.0195364]
[1725566229527,0.004,55999.0,55998.0,0.1088384]
[1725566230230,0.004,55999.0,55998.0,0.16221173]
[1725566230623,0.0002678,56012.0,56011.0,0.089281]
[1725566230829,0.0002678,56012.0,56011.0,0.7216]
[1725566231130,0.178566,56010.0,56009.0,0.3608]
[1725566231427,0.091283,56010.0,56009.0,0.3608]
[1725566231625,0.002,56010.0,56002.0,0.3608]
[1725566231831,0.180588,56003.0,56002.0,0.3608]
[1725566232040,0.091294,56003.0,56002.0,0.3608]
[1725566232221,0.002,56003.0,56002.0,0.3608]
[1725566232929,0.091294,56003.0,56002.0,0.3608]
[1725566233819,0.530588,56003.0,56002.0,0.3608]
[1725566234337,0.531588,56003.0,56002.0,0.3708]
[1725566234627,0.092294,56003.0,56002.0,0.3708]
[1725566235426,0.004,56003.0,56002.0,0.460095]
[1725566235725,0.0002678,56012.0,56002.0,1.50648]
[1725566236028,0.4766,56023.0,56002.0,1.50648]
[1725566236029,0.089268,56020.0,56015.0,0.089275]
[1725566236223,0.09405,56031.0,56015.0,0.49267577]
[1725566236224,0.08925,56031.0,56015.0,0.49267577]
[1725566236423,0.08925,56031.0,56015.0,0.439275]
[1725566236424,0.089263,56023.0,56015.0,0.439275]
[1725566236625,0.089254,56028.0,56015.0,1.48556]
[1725566236824,0.3608,56039.0,56027.0,0.450055]
[1725566237028,0.2369,56040.0,56027.0,0.450055]
[1725566237029,0.089243,56035.0,56034.0,0.3608]
[1725566237238,0.2327,56040.0,56027.0,0.3610678]
[1725566237239,0.089247,56033.0,56027.0,0.3610678]
[1725566237532,0.004,56028.0,56027.0,0.4503238]
[1725566237728,0.004,56028.0,56027.0,0.8003238]
[1725566238032,0.004,56028.0,56027.0,1.9357638]
[1725566239419,0.009,56028.0,56027.0,1.9377638]
[1725566240125,0.005,56028.0,56027.0,1.9377638]
[1725566240337,0.005,56028.0,56027.0,1.9427638]
[1725566240523,0.0002678,56039.0,56036.0,0.08924]
[1725566240837,0.0002678,56039.0,56038.0,1.160838]
[1725566241131,0.0002678,56039.0,56038.0,1.696198]
[1725566241331,0.0002678,56039.0,56038.0,2.296198]
[1725566242558,0.00014399,56039.0,56038.0,2.296198]
[1725566242921,0.00014399,56039.0,56038.0,2.30525847]
[1725566243137,0.00714399,56039.0,56038.0,3.80525847]
[1725566243336,0.00714399,56039.0,56038.0,3.80625847]
[1725566243523,0.00614399,56039.0,56038.0,3.80625847]
[1725566243727,0.01214399,56039.0,56038.0,3.80625847]
[1725566244132,0.01214399,56039.0,56038.0,3.89549647]
[1725566245133,0.0042,56056.0,56038.0,3.72731101]
[1725566245334,0.089201,56062.0,56055.0,1.0716]
[1725566245540,0.089201,56062.0,56061.0,0.3608]
[1725566245741,0.35,56074.0,56061.0,0.3608]
[1725566245934,0.35,56074.0,56067.0,0.3608]
[1725566246131,0.08919,56068.0,56067.0,0.3608]
[1725566246732,0.089198,56063.0,56062.0,0.00026756]
[1725566247235,0.091198,56063.0,56062.0,0.00026756]
[1725566247829,1.315516,56063.0,56062.0,0.00026756]
[1725566248745,1.315516,56063.0,56062.0,5.6e-07]
[1725566248746,1.404714,56063.0,56062.0,5.6e-07]
[1725566249042,1.414714,56063.0,56062.0,0.00100056]
[1725566249241,1.42513554,56063.0,56062.0,1e-08]
[1725566249838,0.089221,56049.0,56048.0,0.365]
[1725566250033,0.091221,56049.0,56048.0,0.3608]
[1725566250235,0.002,56049.0,56048.0,0.450022]
[1725566251239,0.011,56049.0,56048.0,0.451022]
[1725566251942,0.02,56049.0,56048.0,0.452022]
[1725566254353,0.02,56049.0,56048.0,0.3628]
[1725566255239,0.02,56049.0,56048.0,0.452022]
[1725566257539,0.01899945,56049.0,56048.0,1.676484]
[1725566258645,0.018,56049.0,56048.0,1.676484]
[1725566258852,0.018,56049.0,56048.0,1.765706]
[1725566259654,0.018,56049.0,56048.0,1.676484]
[1725566259947,0.018,56049.0,56048.0,1.587262]
[1725566260451,0.011,56049.0,56048.0,1.586262]
[1725566261142,0.005,56049.0,56048.0,1.585262]
[1725566261456,0.005,56049.0,56048.0,1.674484]
[1725566262551,0.005,56049.0,56048.0,1.763706]
[1725566263847,0.003,56049.0,56048.0,1.763706]
[1725566264150,0.002,56049.0,56048.0,1.781706]
[1725566264452,0.001,56049.0,56048.0,1.771706]
[1725566264649,0.002,56049.0,56048.0,1.781706]
[1725566264851,0.001,56049.0,56048.0,1.773706]
[1725566265039,0.001,56049.0,56048.0,1.781706]
[1725566265040,0.002,56049.0,56048.0,1.781706]
[1725566265240,0.00026756,56054.0,56053.0,0.267642]
[1725566265452,0.0042,56071.0,56057.0,0.089208]
[1725566265654,0.1184,56072.0,56070.0,1.0716]
[1725566266152,0.1184,56072.0,56070.0,1.160786]
[1725566266350,0.1181,56080.0,56071.0,0.089185]
[1725566266550,0.08944356,56077.0,56076.0,0.35]
[1725566266746,0.08944356,56077.0,56076.0,0.3608]
[1725566268454,0.17861956,56077.0,56076.0,0.3608]
[1725566268652,0.09744356,56077.0,56076.0,0.001]
[1725566268958,0.18661956,56077.0,56076.0,0.001]
[1725566269253,0.09744356,56077.0,56076.0,0.001]
[1725566269758,0.09744356,56077.0,56076.0,0.002]
[1725566269759,0.11144356,56077.0,56076.0,0.002]
[1725566270649,0.02226756,56077.0,56076.0,0.091178]
[1725566273053,0.02226756,56077.0,56076.0,0.626178]
[1725566274044,0.01426756,56077.0,56076.0,0.625178]
[1725566274252,0.02326756,56077.0,56076.0,0.626178]
[1725566274756,0.02326756,56077.0,56076.0,0.715356]
[1725566274954,0.02326756,56077.0,56076.0,1.754534]
[1725566275356,0.02326756,56077.0,56076.0,1.665356]
[1725566275660,0.02326756,56077.0,56076.0,2.126178]
[1725566276156,0.02326756,56077.0,56076.0,2.726178]
[1725566276856,0.02226756,56077.0,56076.0,2.815356]
[1725566277363,0.00926756,56077.0,56076.0,2.725178]
[1725566277659,0.01926756,56077.0,56076.0,2.726178]
[1725566278058,0.01926756,56077.0,56076.0,2.815356]
[1725566279057,0.01926756,56077.0,56076.0,2.726178]
[1725566279359,0.01926756,56077.0,56076.0,0.091178]
[1725566279661,0.00626756,56077.0,56076.0,1.225178]
[1725566279856,0.00626756,56077.0,56076.0,1.315356]
[1725566279857,0.01926756,56077.0,56076.0,1.315356]
[1725566280363,0.01326756,56077.0,56076.0,1.314356]
[1725566280563,0.02026756,56077.0,56076.0,1.315356]
[1725566280749,0.02026756,56077.0,56076.0,1.226178]
[1725566281062,0.02026756,56077.0,56076.0,0.091178]
[1725566282261,0.02026756,56077.0,56076.0,0.371178]
[1725566283647,0.02026756,56077.0,56076.0,0.282]